bitfinex-derivatives/quotes_SOLF0:USTF0_20241127
["timestamp","ask_amount","ask_price","bid_price","bid_amount"]
[1732684268141,10.04060908,229.49,229.41,1.09080664]
[1732684268341,10.04060908,229.49,229.39,3.7828]
[1732684268342,2.34,229.48,229.39,3.7828]
[1732684268637,2.1801,229.42,229.39,3.7828]
[1732684269941,10.04060908,229.43,229.32,4.521]
[1732684270131,10.04060908,229.43,229.34,1.09104019]
[1732684270332,10.04060908,229.43,229.28,2.6596]
[1732684270333,2.34,229.42,229.28,2.6596]
[1732684270538,2.1809,229.34,229.28,2.6596]
[1732684271341,2.34,229.37,229.28,2.6596]
[1732684272233,2.1807,229.36,229.28,2.6596]
[1732684272445,2.34,229.37,229.28,2.6596]
[1732684272840,2.1809,229.35,229.28,2.6596]
[1732684273341,2.34,229.37,229.28,2.6596]
[1732684273342,2.34,229.37,229.28,1.3177]
[1732684273544,2.1809,229.34,229.28,1.3177]
[1732684275141,2.1809,229.34,229.25,1.3066]
[1732684276240,2.1809,229.34,229.25,3.4883]
[1732684276744,2.1809,229.34,229.27,2.1815]
[1732684276945,2.1809,229.34,229.28,1.09128666]
[1732684277149,2.1809,229.34,229.29,1.09128666]
[1732684277340,2.1809,229.34,229.27,2.1815]
[1732684277541,2.1809,229.34,229.28,1.0912844]
[1732684277746,2.1809,229.34,229.29,1.0912844]
[1732684277939,2.1809,229.34,229.27,2.1815]
[1732684278238,2.34,229.37,229.25,1.3066]
[1732684278239,2.34,229.37,229.28,1.09128957]
[1732684278448,2.1811,229.32,229.29,1.09128957]
[1732684278637,6.43356447,229.36,229.27,6.43356447]
[1732684278841,6.43356447,229.34,229.28,1.09129061]
[1732684279043,6.43356447,229.34,229.27,6.43356447]
[1732684279244,2.34,229.37,229.28,1.09129103]
[1732684279245,6.43356447,229.36,229.28,1.09129103]
[1732684279446,2.34,229.37,229.29,6.43356447]
[1732684280442,6.43356447,229.36,229.29,6.43356447]
[1732684280747,6.43356447,229.36,229.28,6.43356447]
[1732684281143,2.1809,229.34,229.29,1.09128317]
[1732684281343,2.1809,229.34,229.28,6.43356447]
[1732684281543,6.43356447,229.36,229.29,1.09128532]
[1732684281743,2.1811,229.32,229.27,6.43356447]
[1732684281950,6.43356447,229.36,229.28,1.09128213]
[1732684282152,6.43356447,229.36,229.29,1.09128213]
[1732684282353,6.43356447,229.34,229.27,6.43356447]
[1732684282652,6.43356447,229.34,229.28,1.09128213]
[1732684282852,6.43356447,229.34,229.29,1.09128213]
[1732684283055,2.1811,229.32,229.27,6.43356447]
[1732684283254,2.1811,229.32,229.28,1.09128137]
[1732684283458,2.1811,229.32,229.29,1.09128137]
[1732684283649,2.1811,229.32,229.27,6.43356447]
[1732684283847,2.1812,229.31,229.28,1.09128234]
[1732684284050,2.1812,229.31,229.27,6.43356447]
[1732684284250,6.43356447,229.34,229.28,1.09128595]
[1732684284447,2.1812,229.31,229.27,6.43356447]
[1732684284647,2.1812,229.31,229.28,1.09128595]
[1732684284856,2.1812,229.31,229.27,6.43356447]
[1732684285058,2.1812,229.31,229.28,1.09128234]
[1732684285258,2.1812,229.31,229.27,6.43356447]
[1732684285454,2.1811,229.32,229.28,1.09128234]
[1732684285658,6.43356447,229.34,229.27,6.43356447]
[1732684286057,2.1812,229.32,229.27,6.43356447]
[1732684288262,2.34,229.37,229.27,6.43356447]
[1732684288464,2.34,229.39,229.31,6.43356447]
[1732684289362,2.34,229.39,229.33,6.43356447]
[1732684289567,2.34,229.41,229.33,6.43356447]
[1732684290068,8.77356447,229.45,229.37,6.43356447]
[1732684290769,6.43356447,229.43,229.35,6.43356447]
[1732684291271,2.1802,229.42,229.37,6.43356447]
[1732684291469,6.43356447,229.41,229.35,6.43356447]
[1732684291770,8.61386447,229.41,229.35,6.43356447]
[1732684292375,2.1805,229.39,229.33,6.43356447]
[1732684292668,8.77356447,229.39,229.31,6.43356447]
[1732684292868,8.77356447,229.39,229.32,1.09115884]
[1732684293063,8.77356447,229.39,229.31,6.43356447]
[1732684293263,8.77356447,229.39,229.32,1.09114164]
[1732684293467,8.77356447,229.39,229.31,6.43356447]
[1732684293671,8.77356447,229.39,229.32,1.09114798]
[1732684293873,8.77356447,229.39,229.31,6.43356447]
[1732684294171,8.77356447,229.39,229.32,1.09114976]
[1732684294363,8.77356447,229.39,229.31,6.43356447]
[1732684294763,8.77356447,229.39,229.32,1.09117414]
[1732684294972,8.77356447,229.39,229.31,6.43356447]
[1732684295172,8.77356447,229.39,229.32,1.09117359]
[1732684295473,8.77356447,229.39,229.29,2.34]
[1732684295675,8.77356447,229.39,229.31,6.43356447]
[1732684295974,2.1808,229.35,229.32,1.09118177]
[1732684296170,6.43356447,229.37,229.29,8.77356447]
[1732684296372,6.43356447,229.37,229.3,1.09119382]
[1732684296571,6.43356447,229.37,229.29,6.43356447]
[1732684296873,6.43356447,229.35,229.26,7.69646447]
[1732684297077,6.43356447,229.35,229.27,2.8372908]
[1732684297374,6.43356447,229.35,229.28,1.09126569]
[1732684297671,2.1813,229.3,229.26,7.69646447]
[1732684297968,6.43356447,229.33,229.25,1.3066]
[1732684298176,8.77356447,229.33,229.25,7.74016447]
[1732684298371,8.77356447,229.33,229.27,6.43356447]
[1732684298675,1.2743,229.38,229.29,6.43356447]
[1732684298876,6.43356447,229.36,229.29,6.43356447]
[1732684299078,2.1809,229.34,229.29,6.43356447]
[1732684299370,6.43356447,229.36,229.29,6.43356447]
[1732684299965,2.1809,229.34,229.29,6.43356447]
[1732684300168,6.43356447,229.36,229.29,6.43356447]
[1732684300873,2.1809,229.34,229.29,6.43356447]
[1732684301764,2.1809,229.34,229.28,2.1814]
[1732684302066,2.1809,229.34,229.28,8.61496447]
[1732684303777,4.5208,229.36,229.3,6.43356447]
[1732684304170,4.5208,229.36,229.29,2.1813]
[1732684304171,2.1808,229.35,229.29,6.43356447]
[1732684305169,2.1809,229.34,229.29,6.43356447]
[1732684305574,6.43356447,229.34,229.26,7.76606447]
[1732684306375,2.1812,229.31,229.26,7.76606447]
[1732684306776,6.43356447,229.34,229.26,7.76606447]
[1732684307071,2.1813,229.3,229.26,7.76606447]
[1732684307681,2.1814,229.29,229.26,7.76606447]
[1732684308479,2.1815,229.28,229.25,1.3066]
[1732684308776,2.1815,229.28,229.25,7.74016447]
[1732684310073,6.43356447,229.34,229.25,1.3066]
[1732684310275,2.1816,229.27,229.26,1.09135312]
[1732684311581,6.43356447,229.34,229.26,1.09135312]
[1732684311779,2.34,229.33,229.25,7.74016447]
[1732684312081,2.1812,229.31,229.26,1.09135576]
[1732684312277,2.1812,229.31,229.25,7.74016447]
[1732684312471,2.1812,229.31,229.26,1.09135215]
[1732684312875,2.1812,229.31,229.25,7.74016447]
[1732684313084,2.1812,229.31,229.26,1.09135291]
[1732684313283,1.2406,229.41,229.28,6.43356447]
[1732684313284,2.34,229.35,229.28,6.43356447]
[1732684313581,2.34,229.37,229.3,6.43356447]
[1732684314283,2.1809,229.35,229.3,6.43356447]
[1732684315283,2.34,229.37,229.3,6.43356447]
[1732684315482,2.1809,229.34,229.3,6.43356447]
[1732684316283,2.34,229.39,229.32,6.43356447]
[1732684316673,2.34,229.39,229.32,8.61466447]
[1732684316674,2.1806,229.38,229.32,8.61466447]
[1732684316980,8.77356447,229.42,229.34,6.43356447]
[1732684317185,6.43356447,229.4,229.34,6.43356447]
[1732684317480,2.5991,229.49,229.36,6.43356447]
[1732684317684,6.43356447,229.43,229.36,6.43356447]
[1732684318588,2.1803,229.41,229.36,6.43356447]
[1732684319182,6.43356447,229.43,229.34,8.61446447]
[1732684319489,2.1803,229.4,229.34,6.43356447]
[1732684320183,2.34,229.45,229.32,1.2311]
[1732684320184,6.43356447,229.41,229.32,1.2311]
[1732684320386,6.43356447,229.39,229.32,1.2311]
[1732684320778,2.1806,229.37,229.32,1.2311]
[1732684320985,6.43356447,229.39,229.32,1.2311]
[1732684321577,2.1806,229.37,229.32,1.2311]
[1732684321777,6.43356447,229.37,229.32,1.2311]
[1732684321984,6.43356447,229.37,229.25,1.3066]
[1732684321985,2.1811,229.32,229.25,3.4883]
[1732684322181,6.43356447,229.35,229.28,6.43356447]
[1732684322381,6.43356447,229.35,229.29,1.09124021]
[1732684322582,2.181,229.33,229.28,6.43356447]
[1732684322783,6.43356447,229.35,229.25,1.3066]
[1732684323087,6.43356447,229.33,229.26,1.09131336]
[1732684323287,6.43356447,229.33,229.25,7.74016447]
[1732684323487,6.43356447,229.33,229.26,1.09139384]
[1732684323786,6.43356447,229.33,229.25,7.74016447]
[1732684323990,2.1815,229.28,229.26,1.09137487]
[1732684324184,2.1815,229.28,229.25,1.3066]
[1732684324383,2.1815,229.28,229.26,1.09140823]
[1732684324584,2.1815,229.28,229.25,1.3066]
[1732684324781,2.1815,229.28,229.26,7.52495145]
[1732684324983,2.1815,229.28,229.26,6.43356447]
[1732684325384,2.1815,229.27,229.26,6.43356447]
[1732684325583,2.1815,229.27,229.26,1.09137711]
[1732684326187,6.43356447,229.33,229.25,1.3066]
[1732684326390,2.1816,229.26,229.25,1.3066]
[1732684326583,6.43356447,229.29,229.22,8.77356447]
[1732684326887,2.1818,229.25,229.23,1.09139461]
[1732684327079,2.1818,229.25,229.22,6.43356447]
[1732684327279,2.1818,229.25,229.23,1.09139758]
[1732684327478,2.1818,229.25,229.2,2.1822]
[1732684327680,2.1818,229.25,229.22,6.43356447]
[1732684331886,2.1818,229.25,229.19,2.34]
[1732684331887,2.1818,229.24,229.23,6.43356447]
[1732684332689,2.1817,229.26,229.23,6.43356447]
[1732684332890,8.77356447,229.31,229.23,6.43356447]
[1732684338190,6.43356447,229.29,229.18,2.34]
[1732684338394,6.43356447,229.29,229.22,6.43356447]
[1732684340284,2.1817,229.26,229.22,6.43356447]
[1732684344597,2.1817,229.26,229.24,6.43356447]
[1732684345198,2.1819,229.24,229.15,1.2882]
[1732684345496,2.1819,229.24,229.16,3.5707583]
[1732684345800,2.1819,229.24,229.21,6.43356447]
[1732684346499,2.1821,229.22,229.17,2.1825]
[1732684346693,2.1821,229.22,229.19,6.43356447]
[1732684347095,2.1821,229.21,229.19,6.43356447]
[1732684347296,2.34,229.25,229.19,6.43356447]
[1732684347894,2.1819,229.24,229.19,6.43356447]
[1732684348092,2.34,229.25,229.19,6.43356447]
[1732684348494,2.182,229.23,229.19,6.43356447]
[1732684348901,2.34,229.25,229.19,6.43356447]
[1732684349995,2.34,229.25,229.21,6.43356447]
[1732684350399,2.182,229.23,229.21,6.43356447]
[1732684355904,2.1816,229.27,229.21,6.43356447]
[1732684356111,2.34,229.29,229.24,6.43356447]
[1732684357206,2.1816,229.27,229.24,6.43356447]
[1732684358307,2.1812,229.31,229.26,6.43356447]
[1732684358509,2.34,229.32,229.26,6.43356447]
[1732684359808,2.1814,229.29,229.24,6.43356447]
[1732684361611,2.1813,229.3,229.26,2.1816]
[1732684361810,2.1813,229.3,229.24,6.43356447]
[1732684361811,2.34,229.31,229.24,6.43356447]
[1732684362311,2.1813,229.3,229.25,2.1817]
[1732684362507,2.1813,229.3,229.24,6.43356447]
[1732684362711,2.181,229.33,229.28,8.61496447]
[1732684362912,24.39632993,229.37,229.3,6.43356447]
[1732684363108,30.8298944,229.37,229.3,6.43356447]
[1732684363315,2.1808,229.35,229.3,6.43356447]
[1732684363508,2.1808,229.35,229.23,6.1286]
[1732684363509,6.43356447,229.35,229.28,6.43356447]
[1732684363905,8.61456447,229.33,229.27,2.1815]
[1732684364213,6.43356447,229.29,229.23,1.2454]
[1732684364411,6.43356447,229.27,229.2,6.43356447]
[1732684364709,6.43356447,229.27,229.21,1.09140887]
[1732684364916,6.43356447,229.27,229.2,6.43356447]
[1732684365314,6.43356447,229.27,229.19,6.43356447]
[1732684366012,2.1819,229.24,229.19,6.43356447]
[1732684367616,2.1819,229.24,229.19,8.61586447]
[1732684368315,2.1819,229.24,229.2,1.09155002]
[1732684368518,2.1819,229.24,229.19,8.61586447]
[1732684368817,2.1819,229.24,229.2,1.09155007]
[1732684369013,2.1819,229.24,229.19,8.61586447]
[1732684369317,2.1819,229.24,229.2,1.0915444]
[1732684369510,2.1819,229.24,229.19,8.61586447]
[1732684370111,2.1819,229.23,229.19,8.61586447]
[1732684372423,2.1819,229.23,229.19,6.43356447]
[1732684372916,6.43356447,229.25,229.16,2.5432]
[1732684373126,2.1821,229.22,229.18,6.43356447]
[1732684373318,6.43356447,229.25,229.19,1.0915964]
[1732684373516,6.43356447,229.25,229.18,6.43356447]
[1732684373722,6.43356447,229.25,229.19,1.0916013]
[1732684373925,6.43356447,229.25,229.18,6.43356447]
[1732684374426,2.1819,229.23,229.18,6.43356447]
[1732684374627,2.1819,229.23,229.18,8.61596447]
[1732684375918,2.1818,229.25,229.2,8.61576447]
[1732684376121,6.43356447,229.27,229.2,8.61576447]
[1732684376323,8.77356447,229.27,229.2,8.61576447]
[1732684377126,8.77356447,229.27,229.21,6.43356447]
[1732684378132,2.1819,229.24,229.21,6.43356447]
[1732684378423,8.77356447,229.27,229.21,6.43356447]
[1732684379828,2.34,229.27,229.21,6.43356447]
[1732684380232,2.1818,229.25,229.21,6.43356447]
[1732684380630,8.77356447,229.27,229.18,2.1823]
[1732684380835,8.77356447,229.27,229.19,6.43356447]
[1732684381133,2.1819,229.24,229.19,6.43356447]
[1732684381432,2.1819,229.24,229.19,8.61586447]
[1732684382028,2.1819,229.24,229.19,2.1823]
[1732684382225,2.34,229.3,229.21,6.43356447]
[1732684382428,2.34,229.3,229.23,6.43356447]
[1732684382635,2.34,229.31,229.23,6.43356447]
[1732684384229,2.1815,229.28,229.23,8.61546447]
[1732684384633,2.34,229.31,229.23,6.43356447]
[1732684384835,4.5213,229.31,229.25,8.61526447]
[1732684385329,2.1812,229.31,229.25,8.61526447]
[1732684386428,2.1813,229.3,229.25,8.61526447]
[1732684389137,2.1811,229.32,229.27,2.1815]
[1732684391237,2.1811,229.32,229.25,6.43356447]
[1732684392237,2.1812,229.31,229.26,2.1816]
[1732684392837,2.1811,229.32,229.27,8.61506447]
[1732684393032,3.8992,229.43,229.27,8.61506447]
[1732684393237,6.43356447,229.34,229.27,8.61506447]
[1732684394337,2.1812,229.32,229.27,8.61506447]
[1732684396234,3.8992,229.43,229.27,6.43356447]
[1732684396434,6.43356447,229.35,229.29,6.43356447]
[1732684396642,6.43356447,229.37,229.29,6.43356447]
[1732684397042,2.1808,229.36,229.31,2.1812]
[1732684397440,6.43356447,229.37,229.31,2.1812]
[1732684398044,2.181,229.34,229.29,2.1813]
[1732684398234,6.43356447,229.33,229.27,4.892]
[1732684398543,6.43356447,229.33,229.26,1.2857]
[1732684398933,2.1813,229.3,229.26,3.4673]
[1732684399133,6.43356447,229.32,229.26,1.2857]
[1732684399536,2.1813,229.3,229.26,1.2857]
[1732684399735,6.43356447,229.32,229.26,1.2857]
[1732684400333,2.1813,229.3,229.26,3.4673]
[1732684402139,2.1814,229.29,229.26,3.4673]
[1732684402341,6.43356447,229.3,229.14,2.5315]
[1732684402542,6.43356447,229.3,229.21,6.43356447]
[1732684403140,2.1816,229.27,229.23,2.1819]
[1732684404945,2.1816,229.27,229.23,8.61546447]
[1732684405447,2.1816,229.27,229.23,2.1819]
[1732684405640,2.1816,229.27,229.23,8.61546447]
[1732684414945,2.1815,229.28,229.23,8.61546447]
[1732684415149,2.1815,229.28,229.24,2.1818]
[1732684415346,2.1815,229.28,229.23,6.43356447]
[1732684415756,2.1815,229.28,229.23,8.61546447]
[1732684417347,2.1815,229.28,229.23,6.43356447]
[1732684418368,2.1815,229.28,229.23,8.61546447]
[1732684418563,2.32,229.31,229.15,1.2599]
[1732684418780,2.1817,229.26,229.22,6.43356447]
[1732684419849,2.1817,229.26,229.22,8.61556447]
[1732684420649,2.1818,229.25,229.22,6.43356447]
[1732684421757,2.1818,229.24,229.16,2.32]
[1732684421959,6.43356447,229.28,229.2,6.43356447]
[1732684423049,6.43356447,229.28,229.2,8.61576447]
[1732684425460,2.1818,229.25,229.2,8.61576447]
[1732684425759,2.1818,229.25,229.22,6.43356447]
[1732684429365,3.8808,229.35,229.24,6.43356447]
[1732684429660,2.32,229.35,229.28,6.43356447]
[1732684429971,22.05468166,229.36,229.3,6.43356447]
[1732684430160,22.05468166,229.36,229.29,2.1814]
[1732684430464,22.05468166,229.36,229.3,6.43356447]
[1732684431260,2.1809,229.34,229.3,6.43356447]
[1732684433567,2.1809,229.34,229.29,2.1814]
[1732684435762,8.61436447,229.36,229.3,2.1813]
[1732684436068,6.43356447,229.36,229.3,2.1813]
[1732684436868,6.43356447,229.36,229.28,6.43356447]
[1732684437165,6.43356447,229.36,229.29,6.43356447]
[1732684438358,22.04769458,229.43,229.31,6.43356447]
[1732684438557,2.32,229.42,229.28,2.32]
[1732684438759,22.04769458,229.43,229.37,6.43356447]
[1732684439169,6.43356447,229.42,229.35,6.43356447]
[1732684439564,6.43356447,229.4,229.33,6.43356447]
[1732684440163,6.43356447,229.37,229.29,6.43356447]
[1732684440364,6.43356447,229.37,229.31,6.43356447]
[1732684440669,8.61406447,229.39,229.32,2.181]
[1732684440865,6.43356447,229.39,229.32,2.181]
[1732684441065,6.43356447,229.39,229.31,6.43356447]
[1732684441268,2.1807,229.36,229.31,8.61476447]
[1732684441465,2.1807,229.36,229.31,2.1812]
[1732684442868,2.1807,229.36,229.29,6.43356447]
[1732684443168,2.1807,229.36,229.32,2.1811]
[1732684443561,2.32,229.4,229.32,2.1811]
[1732684443772,2.1804,229.4,229.35,8.61436447]
[1732684443972,6.43356447,229.42,229.35,8.61436447]
[1732684445075,2.1803,229.4,229.35,8.61436447]
[1732684449169,2.1803,229.4,229.36,2.1807]
[1732684449966,3.8178,229.55,229.37,6.43356447]
[1732684450164,2.18,229.43,229.37,6.43356447]
[1732684450570,2.18,229.43,229.38,2.1805]
[1732684451874,2.1801,229.42,229.38,2.1805]
[1732684452374,6.43356447,229.39,229.35,1.2555]
[1732684452575,6.43356447,229.39,229.32,6.43356447]
[1732684453275,2.1806,229.37,229.33,2.181]
[1732684454871,2.1805,229.38,229.34,2.1808]
[1732684460881,6.43356447,229.39,229.28,1.2214]
[1732684461082,6.43356447,229.35,229.29,2.32]
[1732684461677,2.181,229.33,229.29,4.5013]
[1732684461878,6.43356447,229.35,229.26,2.32]
[1732684462184,6.43356447,229.35,229.26,8.75356447]
[1732684462683,6.43356447,229.35,229.27,2.1815]
[1732684462980,6.43356447,229.33,229.24,1.2555]
[1732684463179,2.1814,229.29,229.24,9.87086447]
[1732684463379,2.1814,229.29,229.24,8.61536447]
[1732684463685,6.43356447,229.31,229.23,6.43356447]
[1732684463889,2.1815,229.28,229.24,2.1818]
[1732684464781,2.1814,229.29,229.22,2.1819]
[1732684464985,6.43356447,229.29,229.18,2.32]
[1732684465177,6.43356447,229.29,229.23,6.43356447]
[1732684465483,2.1815,229.28,229.23,6.43356447]
[1732684465884,6.43356447,229.31,229.23,6.43356447]
[1732684466089,2.1815,229.28,229.23,6.43356447]
[1732684467783,2.1815,229.28,229.23,8.61546447]
[1732684467987,2.1813,229.3,229.25,6.43356447]
[1732684468891,2.1814,229.29,229.25,6.43356447]
[1732684469289,6.43356447,229.32,229.25,6.43356447]
[1732684471390,2.1813,229.3,229.25,6.43356447]
[1732684472301,2.32,229.34,229.25,8.61526447]
[1732684472498,6.43356447,229.33,229.25,6.43356447]
[1732684473499,2.1814,229.29,229.25,6.43356447]
[1732684475399,2.1813,229.31,229.25,6.43356447]
[1732684475700,6.43356447,229.33,229.25,6.43356447]
[1732684475903,2.1812,229.31,229.25,6.43356447]
[1732684476198,6.43356447,229.33,229.25,6.43356447]
[1732684476997,2.1814,229.29,229.25,6.43356447]
[1732684477198,2.32,229.34,229.22,2.182]
[1732684477398,2.1815,229.28,229.23,6.43356447]
[1732684477598,6.43356447,229.31,229.14,1.2855]
[1732684477795,6.43356447,229.28,229.21,6.43356447]
[1732684478200,2.1817,229.26,229.21,8.61566447]
[1732684478402,6.43356447,229.28,229.21,8.61566447]
[1732684478592,2.1817,229.25,229.21,6.43356447]
[1732684480293,2.1818,229.24,229.21,6.43356447]
[1732684483403,2.1818,229.25,229.21,6.43356447]
[1732684485701,2.182,229.23,229.18,2.1823]
[1732684486005,2.182,229.23,229.2,6.43356447]
[1732684486707,6.43356447,229.28,229.2,6.43356447]
[1732684488404,2.1819,229.24,229.2,8.61576447]
[1732684497406,2.1819,229.24,229.21,2.1821]
[1732684498004,2.1817,229.26,229.23,8.61546447]
[1732684498208,2.32,229.29,229.23,8.61546447]
[1732684498509,2.1817,229.26,229.23,6.43356447]
[1732684499111,2.1817,229.26,229.22,2.182]
[1732684499311,2.1817,229.26,229.21,6.43356447]
[1732684499606,2.1817,229.26,229.21,8.61566447]
[1732684499808,3.9221,229.33,229.21,6.43356447]
[1732684499809,2.32,229.3,229.21,6.43356447]
[1732684500007,2.1815,229.28,229.23,6.43356447]
[1732684500211,2.1815,229.28,229.25,6.43356447]
[1732684500412,2.1813,229.3,229.25,6.43356447]
[1732684500704,8.75356447,229.35,229.27,8.61506447]
[1732684500901,2.32,229.36,229.27,8.61506447]
[1732684501102,6.43356447,229.32,229.22,3.971]
[1732684501304,6.43356447,229.32,229.24,8.61536447]
[1732684501707,2.1815,229.28,229.24,6.43356447]
[1732684501908,6.43356447,229.32,229.24,6.43356447]
[1732684502299,2.1814,229.3,229.24,8.61536447]
[1732684502504,2.1814,229.3,229.24,6.43356447]
[1732684502805,2.1805,229.38,229.28,6.43356447]
[1732684503007,6.43356447,229.35,229.28,6.43356447]
[1732684503411,6.43356447,229.35,229.26,2.1816]
[1732684503607,6.43356447,229.35,229.27,6.43356447]
[1732684504111,2.1809,229.34,229.29,6.43356447]
[1732684504310,6.43356447,229.37,229.29,6.43356447]
[1732684504509,8.75356447,229.37,229.29,6.43356447]
[1732684505211,6.43356447,229.3,229.22,3.971]
[1732684505409,6.43356447,229.29,229.22,10.40456447]
[1732684505607,2.32,229.37,229.24,6.43356447]
[1732684505811,8.61476447,229.31,229.24,6.43356447]
[1732684506305,8.61496447,229.29,229.22,9.06956447]
[1732684506705,2.1814,229.29,229.22,9.06956447]
[1732684506907,8.61496447,229.29,229.22,9.06956447]
[1732684507210,6.43356447,229.27,229.17,2.32]
[1732684507413,6.43356447,229.27,229.18,6.43356447]
[1732684507804,6.43356447,229.27,229.17,4.5025]
[1732684507805,6.43356447,229.27,229.2,6.43356447]
[1732684508004,2.1817,229.26,229.2,6.43356447]
[1732684509115,2.1815,229.28,229.22,6.43356447]
[1732684509313,6.43356447,229.3,229.22,6.43356447]
[1732684509916,1.3145,229.31,229.22,8.61556447]
[1732684510116,2.3,229.32,229.24,6.43356447]
[1732684510415,6.43356447,229.32,229.24,6.43356447]
[1732684510805,6.43356447,229.32,229.22,2.3]
[1732684510806,6.43356447,229.3,229.22,2.3]
[1732684511010,6.43356447,229.3,229.22,8.73356447]
[1732684511412,6.43356447,229.3,229.24,6.43356447]
[1732684511915,6.43356447,229.3,229.23,2.1819]
[1732684511916,2.1814,229.29,229.23,2.1819]
[1732684512109,2.3,229.35,229.23,2.1819]
[1732684512413,2.1809,229.34,229.27,6.43356447]
[1732684512614,6.43356447,229.35,229.27,6.43356447]
[1732684513113,6.43356447,229.28,229.18,6.43356447]
[1732684513312,6.43356447,229.26,229.18,6.43356447]
[1732684513714,6.43356447,229.24,229.16,2.1826]
[1732684513916,6.43356447,229.24,229.16,8.61616447]
[1732684514209,6.43356447,229.22,229.14,6.43356447]
[1732684514712,6.43356447,229.22,229.15,1.09184846]
[1732684514913,6.43356447,229.22,229.14,6.43356447]
[1732684515315,6.43356447,229.22,229.13,2.5989]
[1732684515514,6.43356447,229.22,229.14,6.43356447]
[1732684516113,2.1824,229.19,229.14,6.43356447]
[1732684517412,2.1824,229.19,229.13,4.7817]
[1732684517816,2.1824,229.19,229.14,6.43356447]
[1732684519318,6.43356447,229.24,229.18,6.43356447]
[1732684519616,6.43356447,229.19,229.1,2.71]
[1732684519820,6.43356447,229.11,229.1,2.71]
[1732684520119,6.43356447,229.13,229.1,3.80212106]
[1732684520319,8.73356447,229.13,229.05,8.61716447]
[1732684520519,8.73356447,229.13,229.06,1.09212521]
[1732684520714,8.73356447,229.13,229.07,1.09212521]
[1732684520920,8.73356447,229.13,229.07,3.73]
[1732684521215,2.1832,229.1,229.07,3.73]
[1732684521417,8.73356447,229.13,229.07,3.73]
[1732684521720,2.1833,229.09,229.07,10.68]
[1732684521918,2.3,229.08,229.07,11.97]
[1732684523018,2.3,229.08,229.0,2.71]
[1732684523216,6.43356447,229.01,229.0,2.71]
[1732684523516,5.52356447,229.01,229.0,2.71]
[1732684523821,5.52356447,229.01,228.88,3.7768]
[1732684524023,6.43356447,228.98,228.9,6.43356447]
[1732684524223,6.43356447,228.98,228.92,2.1849]
[1732684524519,6.43356447,228.98,228.9,6.43356447]
[1732684524715,6.43356447,228.98,228.92,3.01]
[1732684525112,6.43356447,228.98,228.92,6.24]
[1732684525319,6.43356447,228.94,228.92,6.24]
[1732684525813,8.61826447,228.94,228.92,6.24]
[1732684526122,6.43356447,228.94,228.91,4.04]
[1732684526319,8.61846447,228.92,228.91,4.04]
[1732684527522,6.43356447,228.92,228.84,2.71]
[1732684527715,4.92356447,228.85,228.84,2.71]
[1732684527918,7.22356447,228.85,228.76,6.43356447]
[1732684528121,6.43356447,228.83,228.76,6.43356447]
[1732684528520,8.73356447,228.83,228.76,6.43356447]
[1732684528824,2.5865,228.95,228.8,6.43356447]
[1732684529015,6.43356447,228.89,228.82,6.43356447]
[1732684529216,2.3,228.88,228.82,6.43356447]
[1732684529414,2.3,228.88,228.82,8.61936447]
[1732684529815,6.43356447,228.89,228.82,8.61936447]
[1732684530021,8.73356447,228.89,228.82,8.61936447]
[1732684530324,2.3,228.89,228.82,2.1858]
[1732684530520,1.2879,228.95,228.82,10.09181461]
[1732684530727,2.3,228.94,228.83,1.2725]
[1732684530924,2.3,228.93,228.83,1.2725]
[1732684531525,2.3,228.93,228.84,2.1856]
[1732684532619,2.1849,228.92,228.84,2.1856]
[1732684533827,2.3,228.93,228.88,2.1852]
[1732684534122,2.3,228.93,228.83,1.2725]
[1732684534328,2.3,228.93,228.87,2.1853]
[1732684535329,2.3,228.96,228.88,2.1852]
[1732684535724,4.4845,228.96,228.88,2.1852]
[1732684536423,4.4845,228.96,228.86,1.2425]
[1732684536624,4.4845,228.96,228.89,2.1851]
[1732684536827,13.1,229.19,228.86,1.2425]
[1732684537029,2.1841,229.01,228.88,10.09181461]
[1732684537227,2.1841,229.01,228.94,2.1847]
[1732684538027,10.09181461,228.96,228.86,1.2425]
[1732684538331,12.39181461,228.96,228.86,1.2425]
[1732684539233,10.09181461,228.93,228.86,1.2425]
[1732684540333,2.185,228.91,228.86,1.2425]